[Event "Early-Titled-Tuesday-Blitz-February-20-2024"]
[Site "Chess.com"]
[Date "2024.02.20"]
[Round "3"]
[White "seasidesunset"]
[Black "EsmeraldasAnderson03"]
[Result "1-0"]
[WhiteElo "2261"]
[BlackElo "2532"]
[TimeControl "180+1"]
[EndTime "8:29:41 PST"]
[Termination "seasidesunset won by resignation"]

1. e4 {[%clk 0:02:54.8]} 1... c5 {[%clk 0:02:59.5]} 2. c4 {[%clk 0:02:51.5]}
2... d6 {[%clk 0:02:57.6]} 3. Nc3 {[%clk 0:02:51.8]} 3... Nf6 {[%clk 0:02:57.3]}
4. g3 {[%clk 0:02:52.5]} 4... g6 {[%clk 0:02:57.4]} 5. Bg2 {[%clk 0:02:53.2]}
5... Bg7 {[%clk 0:02:58.1]} 6. Nge2 {[%clk 0:02:53.9]} 6... O-O {[%clk
0:02:58.7]} 7. d3 {[%clk 0:02:54.6]} 7... e5 {[%clk 0:02:57.2]} 8. O-O {[%clk
0:02:54.9]} 8... h6 {[%clk 0:02:57.9]} 9. f4 {[%clk 0:02:55.3]} 9... Kh7 {[%clk
0:02:57.9]} 10. f5 {[%clk 0:02:55.5]} 10... Nc6 {[%clk 0:02:57.3]} 11. h3 {[%clk
0:02:55.4]} 11... Nd4 {[%clk 0:02:50.3]} 12. g4 {[%clk 0:02:55.2]} 12... Ne8
{[%clk 0:02:48.9]} 13. Ng3 {[%clk 0:02:54.8]} 13... g5 {[%clk 0:02:46.6]} 14. f6
{[%clk 0:02:29.5]} 14... Nxf6 {[%clk 0:02:46.2]} 15. Be3 {[%clk 0:02:15.4]}
15... Rb8 {[%clk 0:02:44.3]} 16. Nd5 {[%clk 0:01:47.5]} 16... Nxd5 {[%clk
0:02:43.8]} 17. exd5 {[%clk 0:01:48.4]} 17... b5 {[%clk 0:02:27.5]} 18. Be4+
{[%clk 0:01:42.8]} 18... Kg8 {[%clk 0:02:28]} 19. Bxd4 {[%clk 0:01:37.6]} 19...
exd4 {[%clk 0:02:23.4]} 20. Qf3 {[%clk 0:01:37.9]} 20... bxc4 {[%clk 0:02:17.7]}
21. dxc4 {[%clk 0:01:29.1]} 21... Rxb2 {[%clk 0:02:17.5]} 22. Nf5 {[%clk
0:01:28.2]} 22... Qf6 {[%clk 0:02:07.3]} 23. Bd3 {[%clk 0:01:25.4]} 23... Qe5
{[%clk 0:02:04.4]} 24. Ng3 {[%clk 0:01:00.5]} 24... Qe3+ {[%clk 0:01:39]} 25.
Qxe3 {[%clk 0:01:00.6]} 25... dxe3 {[%clk 0:01:39.9]} 26. Rae1 {[%clk
0:00:57.8]} 26... Re8 {[%clk 0:01:39.2]} 27. Re2 {[%clk 0:00:58.7]} 27... Rb4
{[%clk 0:01:31.9]} 28. Nh5 {[%clk 0:00:53.4]} 28... Ba6 {[%clk 0:01:23.8]} 29.
Rc1 {[%clk 0:00:25.3]} 29... Bd4 {[%clk 0:01:13]} 30. Ng3 {[%clk 0:00:24.9]}
30... Bc8 {[%clk 0:01:06.8]} 31. Ne4 {[%clk 0:00:24.4]} 31... Rd8 {[%clk
0:01:02.8]} 32. Kg2 {[%clk 0:00:19.8]} 32... Kg7 {[%clk 0:01:03.3]} 33. Ng3
{[%clk 0:00:20]} 33... Bd7 {[%clk 0:00:59.2]} 34. Rf1 {[%clk 0:00:19.9]} 34...
Rdb8 {[%clk 0:00:56.8]} 35. Nh5+ {[%clk 0:00:19.5]} 35... Kf8 {[%clk 0:00:56.4]}
36. Nf6 {[%clk 0:00:18.7]} 36... Bxf6 {[%clk 0:00:47.2]} 37. Rxf6 {[%clk
0:00:18.4]} 37... Rb2 {[%clk 0:00:45.1]} 38. Rxd6 {[%clk 0:00:16.5]} 38... Ba4
{[%clk 0:00:37.4]} 39. Rxh6 {[%clk 0:00:12.7]} 39... Bd1 {[%clk 0:00:37.1]} 40.
Rh8+ {[%clk 0:00:11.3]} 40... Kg7 {[%clk 0:00:33.2]} 41. Rxb8 {[%clk 0:00:11.9]}
41... Rxb8 {[%clk 0:00:26.9]} 42. Rxe3 {[%clk 0:00:12]} 42... Rb2+ {[%clk
0:00:27.5]} 43. Kg3 {[%clk 0:00:10.3]} 43... Rxa2 {[%clk 0:00:27.9]} 44. d6
{[%clk 0:00:08.4]} 44... Ba4 {[%clk 0:00:27.8]} 45. Bf5 {[%clk 0:00:08.9]} 45...
Rd2 {[%clk 0:00:27.9]} 46. Rd3 {[%clk 0:00:06]} 46... Rxd3+ {[%clk 0:00:27.4]}
47. Bxd3 {[%clk 0:00:06.9]} 47... Kf6 {[%clk 0:00:25.2]} 48. Bf5 {[%clk
0:00:07.4]} 48... Bb3 {[%clk 0:00:25.3]} 49. h4 {[%clk 0:00:03.8]} 49... gxh4+
{[%clk 0:00:17.4]} 50. Kxh4 {[%clk 0:00:04.7]} 50... Ba4 {[%clk 0:00:17.6]} 51.
Kg3 {[%clk 0:00:03.3]} 51... Bc6 {[%clk 0:00:11.7]} 52. Kf4 {[%clk 0:00:03.6]}
52... a5 {[%clk 0:00:12.3]} 53. g5+ {[%clk 0:00:03.5]} 53... Kg7 {[%clk
0:00:11.8]} 54. d7 {[%clk 0:00:04.1]} 54... Bxd7 {[%clk 0:00:11.8]} 55. Bxd7
{[%clk 0:00:05]} 55... f6 {[%clk 0:00:11.8]} 56. Kf5 {[%clk 0:00:02.5]} 56...
fxg5 {[%clk 0:00:12]} 57. Kxg5 {[%clk 0:00:03.4]} 57... Kf7 {[%clk 0:00:12.5]}
58. Ba4 {[%clk 0:00:03.6]} 58... Ke7 {[%clk 0:00:13.4]} 59. Kf5 {[%clk
0:00:04.2]} 59... Kd6 {[%clk 0:00:13.9]} 60. Ke4 {[%clk 0:00:04.9]} 60... Ke6
{[%clk 0:00:14.5]} 61. Bb5 {[%clk 0:00:04.7]} 61... Kd6 {[%clk 0:00:14.9]} 62.
Kf5 {[%clk 0:00:05]} 62... Kc7 {[%clk 0:00:15.3]} 63. Ke5 {[%clk 0:00:05.6]}
63... Kb6 {[%clk 0:00:15.8]} 64. Ba4 {[%clk 0:00:06.3]} 64... Kc7 {[%clk
0:00:15.8]} 65. Kd5 {[%clk 0:00:07.2]} 65... Kb6 {[%clk 0:00:16.7]} 66. Kd6
{[%clk 0:00:07.4]} 1-0

[Event "Early-Titled-Tuesday-Blitz-February-20-2024"]
[Site "Chess.com"]
[Date "2024.02.20"]
[Round "3"]
[White "N_Mullodzhanov"]
[Black "yaguigor"]
[Result "0-1"]
[WhiteElo "2472"]
[BlackElo "2675"]
[TimeControl "180+1"]
[EndTime "8:29:45 PST"]
[Termination "yaguigor won by checkmate"]

1. e4 {[%clk 0:03:00.9]} 1... e5 {[%clk 0:02:58]} 2. Nf3 {[%clk 0:03:00.8]} 2...
Nc6 {[%clk 0:02:57]} 3. Bc4 {[%clk 0:02:57.9]} 3... Bc5 {[%clk 0:02:56]} 4. c3
{[%clk 0:02:58]} 4... Nf6 {[%clk 0:02:55.4]} 5. d4 {[%clk 0:02:58.3]} 5... exd4
{[%clk 0:02:55]} 6. cxd4 {[%clk 0:02:59.2]} 6... Bb4+ {[%clk 0:02:54.5]} 7. Nc3
{[%clk 0:02:59.5]} 7... Nxe4 {[%clk 0:02:53.3]} 8. O-O {[%clk 0:02:58.9]} 8...
Bxc3 {[%clk 0:02:52.9]} 9. bxc3 {[%clk 0:02:59]} 9... d5 {[%clk 0:02:51.9]} 10.
Bd3 {[%clk 0:02:59.2]} 10... O-O {[%clk 0:02:51.4]} 11. Qc2 {[%clk 0:02:59.5]}
11... Bf5 {[%clk 0:02:39.7]} 12. Rb1 {[%clk 0:02:59]} 12... b6 {[%clk
0:02:32.6]} 13. a4 {[%clk 0:02:38.2]} 13... Bg6 {[%clk 0:02:30]} 14. Ba3 {[%clk
0:02:36]} 14... Nd6 {[%clk 0:02:22.4]} 15. Bxg6 {[%clk 0:02:25.4]} 15... hxg6
{[%clk 0:02:20.8]} 16. Ne5 {[%clk 0:02:23.5]} 16... Na5 {[%clk 0:02:16.5]} 17.
Rfe1 {[%clk 0:01:58.9]} 17... Re8 {[%clk 0:02:10.3]} 18. Bb4 {[%clk 0:00:47.6]}
18... Nac4 {[%clk 0:02:06.8]} 19. f4 {[%clk 0:00:46.4]} 19... Qf6 {[%clk
0:01:46.1]} 20. g3 {[%clk 0:00:31.3]} 20... Qf5 {[%clk 0:01:36.4]} 21. Qg2
{[%clk 0:00:29.8]} 21... Nxe5 {[%clk 0:01:24.4]} 22. fxe5 {[%clk 0:00:24.3]}
22... Ne4 {[%clk 0:01:24]} 23. Rf1 {[%clk 0:00:23]} 23... Qe6 {[%clk 0:01:20]}
24. Rbe1 {[%clk 0:00:15]} 24... a5 {[%clk 0:01:12.2]} 25. Ba3 {[%clk 0:00:14.5]}
25... Nxc3 {[%clk 0:01:10.5]} 26. Rf4 {[%clk 0:00:14]} 26... g5 {[%clk
0:01:07.8]} 27. Rf3 {[%clk 0:00:11.1]} 27... Ne4 {[%clk 0:00:54.3]} 28. Bc1
{[%clk 0:00:10.8]} 28... f6 {[%clk 0:00:48.1]} 29. exf6 {[%clk 0:00:08.8]} 29...
gxf6 {[%clk 0:00:47.8]} 30. g4 {[%clk 0:00:09.3]} 30... Re7 {[%clk 0:00:45.2]}
31. h4 {[%clk 0:00:09.6]} 31... gxh4 {[%clk 0:00:40]} 32. g5 {[%clk 0:00:10.5]}
32... Rg7 {[%clk 0:00:36.5]} 33. g6 {[%clk 0:00:09.8]} 33... Qe8 {[%clk
0:00:31.3]} 34. Rf4 {[%clk 0:00:07.5]} 34... Qxg6 {[%clk 0:00:29.5]} 35. Qxg6
{[%clk 0:00:07.7]} 35... Rxg6+ {[%clk 0:00:28]} 36. Kh2 {[%clk 0:00:08.6]} 36...
Kg7 {[%clk 0:00:23.3]} 37. Rxh4 {[%clk 0:00:08.4]} 37... Rh8 {[%clk 0:00:22.1]}
38. Rxh8 {[%clk 0:00:08.3]} 38... Kxh8 {[%clk 0:00:23]} 39. Bf4 {[%clk
0:00:08.3]} 39... c5 {[%clk 0:00:21.9]} 40. Bc7 {[%clk 0:00:05.6]} 40... cxd4
{[%clk 0:00:17.4]} 41. Bxb6 {[%clk 0:00:05.3]} 41... d3 {[%clk 0:00:17.6]} 42.
Bxa5 {[%clk 0:00:05.2]} 42... f5 {[%clk 0:00:14.8]} 43. Rd1 {[%clk 0:00:03.9]}
43... Ra6 {[%clk 0:00:14.4]} 44. Bc7 {[%clk 0:00:02.1]} 44... d2 {[%clk
0:00:12.1]} 45. Be5+ {[%clk 0:00:02.2]} 45... Kg8 {[%clk 0:00:11.4]} 46. Rg1+
{[%clk 0:00:02.6]} 46... Kf7 {[%clk 0:00:11.2]} 47. Bf4 {[%clk 0:00:03.2]} 47...
Rxa4 {[%clk 0:00:10.4]} 48. Rd1 {[%clk 0:00:03.5]} 48... Ra2 {[%clk 0:00:09.8]}
49. Kh3 {[%clk 0:00:04]} 49... d4 {[%clk 0:00:08.8]} 50. Kh4 {[%clk 0:00:03]}
50... Ke6 {[%clk 0:00:08.5]} 51. Kh3 {[%clk 0:00:03.4]} 51... Nf2+ {[%clk
0:00:07.3]} 52. Kg2 {[%clk 0:00:02.4]} 52... Nxd1 {[%clk 0:00:08.2]} 53. Kf3
{[%clk 0:00:02.9]} 53... Ne3 {[%clk 0:00:08.3]} 54. Bxe3 {[%clk 0:00:01.7]}
54... d1=Q+ {[%clk 0:00:08.6]} 55. Kf4 {[%clk 0:00:01.9]} 55... dxe3 {[%clk
0:00:09]} 56. Kg5 {[%clk 0:00:01.9]} 56... Rg2+ {[%clk 0:00:08.6]} 57. Kh4
{[%clk 0:00:01.9]} 57... Qh1# {[%clk 0:00:08.6]} 0-1

[Event "Early-Titled-Tuesday-Blitz-February-20-2024"]
[Site "Chess.com"]
[Date "2024.02.20"]
[Round "3"]
[White "angelgab3"]
[Black "Salem-AR"]
[Result "1/2-1/2"]
[WhiteElo "2763"]
[BlackElo "2994"]
[TimeControl "180+1"]
[EndTime "8:29:51 PST"]
[Termination "Game drawn - insufficient material"]

1. e4 {[%clk 0:03:00.9]} 1... c5 {[%clk 0:02:59.9]} 2. Nf3 {[%clk 0:03:01.4]}
2... d6 {[%clk 0:03:00.6]} 3. d4 {[%clk 0:03:01.9]} 3... cxd4 {[%clk 0:03:01.5]}
4. Nxd4 {[%clk 0:03:02.8]} 4... Nf6 {[%clk 0:03:02.1]} 5. Nc3 {[%clk 0:03:03.6]}
5... Nc6 {[%clk 0:03:02.9]} 6. Bg5 {[%clk 0:03:02.8]} 6... e6 {[%clk 0:03:02.7]}
7. Qd3 {[%clk 0:03:03]} 7... Bd7 {[%clk 0:03:00.8]} 8. Ndb5 {[%clk 0:03:02.5]}
8... Nb4 {[%clk 0:03:00.6]} 9. Qd1 {[%clk 0:03:02.6]} 9... a6 {[%clk 0:03:00]}
10. a3 {[%clk 0:03:00.2]} 10... axb5 {[%clk 0:02:11.9]} 11. axb4 {[%clk
0:02:58.7]} 11... Rxa1 {[%clk 0:02:12.8]} 12. Qxa1 {[%clk 0:02:59.6]} 12... Be7
{[%clk 0:02:13.6]} 13. Bxb5 {[%clk 0:02:26.6]} 13... Bxb5 {[%clk 0:02:13.4]} 14.
Nxb5 {[%clk 0:02:27.5]} 14... Nxe4 {[%clk 0:02:13]} 15. Bxe7 {[%clk 0:02:27.6]}
15... Kxe7 {[%clk 0:02:13.6]} 16. O-O {[%clk 0:02:22.6]} 16... Qb6 {[%clk
0:02:09.9]} 17. Qa5 {[%clk 0:02:11]} 17... Qxa5 {[%clk 0:01:54]} 18. bxa5 {[%clk
0:02:11.9]} 18... d5 {[%clk 0:01:54.4]} 19. f3 {[%clk 0:02:01.4]} 19... Nd2
{[%clk 0:01:50.6]} 20. Ra1 {[%clk 0:02:00.6]} 20... Rc8 {[%clk 0:01:48.2]} 21.
c3 {[%clk 0:01:49.7]} 21... Nc4 {[%clk 0:01:35.4]} 22. b3 {[%clk 0:01:31.6]}
22... Nd6 {[%clk 0:01:35.3]} 23. Nxd6 {[%clk 0:01:08.1]} 23... Kxd6 {[%clk
0:01:36.2]} 24. a6 {[%clk 0:01:09]} 24... Ra8 {[%clk 0:01:32.8]} 25. a7 {[%clk
0:01:02.6]} 25... Kc6 {[%clk 0:01:33.2]} 26. c4 {[%clk 0:01:00]} 26... b6 {[%clk
0:00:50.4]} 27. cxd5+ {[%clk 0:00:48.8]} 27... exd5 {[%clk 0:00:51.3]} 28. Kf2
{[%clk 0:00:48.2]} 28... Kb7 {[%clk 0:00:31.9]} 29. Rd1 {[%clk 0:00:47.7]} 29...
Kc6 {[%clk 0:00:27.6]} 30. Ra1 {[%clk 0:00:48.2]} 30... Kb7 {[%clk 0:00:27.4]}
31. Rd1 {[%clk 0:00:48.5]} 31... Rxa7 {[%clk 0:00:27]} 32. Rxd5 {[%clk
0:00:48.4]} 32... Kc6 {[%clk 0:00:27.1]} 33. Rh5 {[%clk 0:00:46.9]} 33... h6
{[%clk 0:00:26.4]} 34. Rh4 {[%clk 0:00:46.9]} 34... Kb5 {[%clk 0:00:21.8]} 35.
Re4 {[%clk 0:00:43.5]} 35... g6 {[%clk 0:00:19.2]} 36. g4 {[%clk 0:00:43.4]}
36... Kc5 {[%clk 0:00:15.7]} 37. Kg3 {[%clk 0:00:41.6]} 37... b5 {[%clk
0:00:16.1]} 38. h4 {[%clk 0:00:39.7]} 38... b4 {[%clk 0:00:16.5]} 39. Rc4+
{[%clk 0:00:39]} 39... Kb5 {[%clk 0:00:16.5]} 40. Rf4 {[%clk 0:00:39.7]} 40...
Kc5 {[%clk 0:00:12.3]} 41. Rc4+ {[%clk 0:00:38.5]} 41... Kb5 {[%clk 0:00:12.7]}
42. Rf4 {[%clk 0:00:39.4]} 42... Rd7 {[%clk 0:00:12.2]} 43. h5 {[%clk
0:00:35.4]} 43... gxh5 {[%clk 0:00:11.7]} 44. gxh5 {[%clk 0:00:36.3]} 44... Rd5
{[%clk 0:00:11.1]} 45. Rxf7 {[%clk 0:00:34.8]} 45... Rxh5 {[%clk 0:00:10.5]} 46.
f4 {[%clk 0:00:35.1]} 46... Kc5 {[%clk 0:00:06.7]} 47. Kg4 {[%clk 0:00:32.4]}
47... Rh1 {[%clk 0:00:07]} 48. Rc7+ {[%clk 0:00:31.1]} 48... Kb5 {[%clk
0:00:05.4]} 49. f5 {[%clk 0:00:29.1]} 49... Rg1+ {[%clk 0:00:04.9]} 50. Kf4
{[%clk 0:00:27.3]} 50... Rf1+ {[%clk 0:00:02.9]} 51. Ke5 {[%clk 0:00:27.3]}
51... Re1+ {[%clk 0:00:01.6]} 52. Kf6 {[%clk 0:00:27]} 52... Rf1 {[%clk
0:00:01.6]} 53. Kg6 {[%clk 0:00:25.6]} 53... Rf3 {[%clk 0:00:01.7]} 54. f6
{[%clk 0:00:24.6]} 54... Rxb3 {[%clk 0:00:02.5]} 55. f7 {[%clk 0:00:22.4]} 55...
Rf3 {[%clk 0:00:03.2]} 56. Kxh6 {[%clk 0:00:22.6]} 56... b3 {[%clk 0:00:03.3]}
57. Kg7 {[%clk 0:00:21]} 57... Kb4 {[%clk 0:00:03.9]} 58. Rc6 {[%clk 0:00:20.5]}
58... b2 {[%clk 0:00:04.1]} 59. f8=Q+ {[%clk 0:00:09.1]} 59... Rxf8 {[%clk
0:00:03.8]} 60. Kxf8 {[%clk 0:00:10]} 60... Kb3 {[%clk 0:00:04.4]} 61. Ke7
{[%clk 0:00:09.2]} 61... b1=Q {[%clk 0:00:04.6]} 62. Rb6+ {[%clk 0:00:09.7]}
62... Kc2 {[%clk 0:00:05.4]} 63. Rxb1 {[%clk 0:00:10.6]} 63... Kxb1 {[%clk
0:00:06.3]} 1/2-1/2

[Event "Early-Titled-Tuesday-Blitz-February-20-2024"]
[Site "Chess.com"]
[Date "2024.02.20"]
[Round "3"]
[White "Beca95"]
[Black "IMRosen"]
[Result "1-0"]
[WhiteElo "2882"]
[BlackElo "2662"]
[TimeControl "180+1"]
[EndTime "8:29:54 PST"]
[Termination "Beca95 won on time"]

1. a4 {[%clk 0:03:00.9]} 1... d5 {[%clk 0:02:58.3]} 2. Nf3 {[%clk 0:03:00.1]}
2... Bf5 {[%clk 0:02:57.6]} 3. d3 {[%clk 0:03:00]} 3... Nc6 {[%clk 0:02:56.6]}
4. Nc3 {[%clk 0:02:58.6]} 4... Nf6 {[%clk 0:02:46.1]} 5. Nh4 {[%clk 0:02:53.6]}
5... Bd7 {[%clk 0:02:39.6]} 6. e4 {[%clk 0:02:53]} 6... e5 {[%clk 0:02:25.9]} 7.
exd5 {[%clk 0:02:50.5]} 7... Nb4 {[%clk 0:02:25.2]} 8. Bg5 {[%clk 0:02:47.8]}
8... Be7 {[%clk 0:02:10.1]} 9. Bxf6 {[%clk 0:02:47.7]} 9... Bxf6 {[%clk
0:02:11]} 10. Nf3 {[%clk 0:02:47.9]} 10... Bf5 {[%clk 0:02:03]} 11. g3 {[%clk
0:02:46.7]} 11... Nxd5 {[%clk 0:02:02.4]} 12. Nxd5 {[%clk 0:02:44.5]} 12... Qxd5
{[%clk 0:02:03.3]} 13. Bg2 {[%clk 0:02:44.5]} 13... Qa5+ {[%clk 0:02:01.3]} 14.
Qd2 {[%clk 0:02:43.4]} 14... Qxd2+ {[%clk 0:02:01.3]} 15. Nxd2 {[%clk
0:02:44.3]} 15... c6 {[%clk 0:02:02]} 16. Ne4 {[%clk 0:02:42.2]} 16... Be7
{[%clk 0:02:02.2]} 17. h3 {[%clk 0:02:39]} 17... f6 {[%clk 0:01:57.2]} 18. g4
{[%clk 0:02:38.1]} 18... Be6 {[%clk 0:01:57.6]} 19. Ng3 {[%clk 0:02:37.2]} 19...
Kf7 {[%clk 0:01:55.4]} 20. O-O {[%clk 0:02:36.2]} 20... Rhd8 {[%clk 0:01:55.3]}
21. Be4 {[%clk 0:02:32.1]} 21... Bc5 {[%clk 0:01:54.2]} 22. Kg2 {[%clk
0:02:30.9]} 22... Rac8 {[%clk 0:01:45.3]} 23. a5 {[%clk 0:02:29.6]} 23... a6
{[%clk 0:01:42.7]} 24. f4 {[%clk 0:02:29.1]} 24... exf4 {[%clk 0:01:40.1]} 25.
Rxf4 {[%clk 0:02:30]} 25... Bd4 {[%clk 0:01:33.5]} 26. c3 {[%clk 0:02:29]} 26...
Be5 {[%clk 0:01:34.2]} 27. Rf3 {[%clk 0:02:29.3]} 27... Bxg3 {[%clk 0:01:34.6]}
28. Kxg3 {[%clk 0:02:30.2]} 28... Bd5 {[%clk 0:01:35.2]} 29. Kf4 {[%clk
0:01:58.8]} 29... Bxe4 {[%clk 0:01:12.5]} 30. Kxe4 {[%clk 0:01:59.7]} 30... Re8+
{[%clk 0:01:11]} 31. Kd4 {[%clk 0:01:59.6]} 31... Re5 {[%clk 0:00:58.2]} 32. Kc4
{[%clk 0:01:57.2]} 32... Rd8 {[%clk 0:00:51.4]} 33. b4 {[%clk 0:01:56.7]} 33...
h5 {[%clk 0:00:42.8]} 34. d4 {[%clk 0:01:54.1]} 34... Rg5 {[%clk 0:00:42.8]} 35.
Rf5 {[%clk 0:01:45.3]} 35... Kg6 {[%clk 0:00:31.1]} 36. Rxg5+ {[%clk 0:01:42]}
36... Kxg5 {[%clk 0:00:32]} 37. Rg1 {[%clk 0:01:40.7]} 37... Rd5 {[%clk
0:00:31.5]} 38. gxh5+ {[%clk 0:01:13.6]} 38... Kh6 {[%clk 0:00:31.6]} 39. Re1
{[%clk 0:00:55.5]} 39... Rxh5 {[%clk 0:00:31.8]} 40. Re3 {[%clk 0:00:55.5]}
40... Rb5 {[%clk 0:00:23.9]} 41. Kb3 {[%clk 0:00:53]} 41... Rd5 {[%clk
0:00:19.7]} 42. Re7 {[%clk 0:00:49.1]} 42... f5 {[%clk 0:00:04.7]} 43. Rxb7
{[%clk 0:00:47.2]} 43... Kg6 {[%clk 0:00:04.9]} 44. Rb6 {[%clk 0:00:40.3]} 44...
f4 {[%clk 0:00:05.1]} 45. Rxc6+ {[%clk 0:00:40.6]} 45... Kg5 {[%clk 0:00:05.6]}
46. Rc7 {[%clk 0:00:40.4]} 46... g6 {[%clk 0:00:04]} 47. Re7 {[%clk 0:00:39.8]}
47... f3 {[%clk 0:00:03.9]} 48. Re1 {[%clk 0:00:37.6]} 48... Kf4 {[%clk
0:00:03.8]} 49. Kc4 {[%clk 0:00:37.1]} 49... Rh5 {[%clk 0:00:03.7]} 50. d5
{[%clk 0:00:35.4]} 50... Rxh3 {[%clk 0:00:04]} 51. d6 {[%clk 0:00:32.3]} 51...
Rh8 {[%clk 0:00:03.8]} 52. Kd5 {[%clk 0:00:31.7]} 52... f2 {[%clk 0:00:04.2]}
53. Rf1 {[%clk 0:00:31.3]} 53... Kf3 {[%clk 0:00:04.8]} 54. c4 {[%clk
0:00:27.4]} 54... g5 {[%clk 0:00:05.3]} 55. c5 {[%clk 0:00:27.5]} 55... g4
{[%clk 0:00:06]} 56. c6 {[%clk 0:00:27.5]} 56... g3 {[%clk 0:00:06.7]} 57. c7
{[%clk 0:00:24.3]} 57... g2 {[%clk 0:00:07.2]} 58. Rxf2+ {[%clk 0:00:24.8]}
58... Kxf2 {[%clk 0:00:07.9]} 59. d7 {[%clk 0:00:25.4]} 59... g1=Q {[%clk
0:00:08.2]} 60. c8=Q {[%clk 0:00:25.9]} 60... Qd1+ {[%clk 0:00:08.5]} 61. Kc6
{[%clk 0:00:25.4]} 61... Qc2+ {[%clk 0:00:06.4]} 62. Kb7 {[%clk 0:00:25.7]}
62... Qe4+ {[%clk 0:00:07]} 63. Qc6 {[%clk 0:00:26]} 63... Qxb4+ {[%clk
0:00:05.6]} 64. Qb6+ {[%clk 0:00:25.1]} 64... Qxb6+ {[%clk 0:00:05.1]} 65. Kxb6
{[%clk 0:00:26]} 65... Rh6+ {[%clk 0:00:03.6]} 66. Kc7 {[%clk 0:00:23.9]} 66...
Rh7 {[%clk 0:00:02.1]} 67. Kc8 {[%clk 0:00:24.4]} 67... Kg1 {[%clk 0:00:02]} 68.
d8=Q {[%clk 0:00:23.1]} 68... Rh3 {[%clk 0:00:01.7]} 69. Qb6+ {[%clk 0:00:22.3]}
69... Kg2 {[%clk 0:00:01.5]} 70. Qxa6 {[%clk 0:00:22.5]} 70... Rg3 {[%clk
0:00:01.8]} 71. Qc6+ {[%clk 0:00:21.6]} 71... Kh2 {[%clk 0:00:02.4]} 72. Qc7
{[%clk 0:00:21.2]} 72... Kg2 {[%clk 0:00:02.8]} 73. Qxg3+ {[%clk 0:00:21]} 73...
Kh1 {[%clk 0:00:03]} 74. Qf3+ {[%clk 0:00:20.4]} 1-0

[Event "Early-Titled-Tuesday-Blitz-February-20-2024"]
[Site "Chess.com"]
[Date "2024.02.20"]
[Round "3"]
[White "lucasran"]
[Black "ploxoi"]
[Result "0-1"]
[WhiteElo "2638"]
[BlackElo "2456"]
[TimeControl "180+1"]
[EndTime "8:29:54 PST"]
[Termination "ploxoi won by resignation"]

1. Nf3 {[%clk 0:03:00.1]} 1... d5 {[%clk 0:03:00.1]} 2. d4 {[%clk 0:02:57.7]}
2... c6 {[%clk 0:02:56]} 3. c4 {[%clk 0:02:56.6]} 3... e6 {[%clk 0:02:55.3]} 4.
e3 {[%clk 0:02:56.8]} 4... Nf6 {[%clk 0:02:55.1]} 5. Bd3 {[%clk 0:02:55.6]} 5...
Nbd7 {[%clk 0:02:54.8]} 6. O-O {[%clk 0:02:56]} 6... Be7 {[%clk 0:02:51.5]} 7.
Nbd2 {[%clk 0:02:56.1]} 7... O-O {[%clk 0:02:50.7]} 8. e4 {[%clk 0:02:56.5]}
8... dxe4 {[%clk 0:02:50.4]} 9. Nxe4 {[%clk 0:02:57.4]} 9... Nxe4 {[%clk
0:02:51.3]} 10. Bxe4 {[%clk 0:02:58.1]} 10... c5 {[%clk 0:02:50.6]} 11. Be3
{[%clk 0:02:45.3]} 11... cxd4 {[%clk 0:02:43.1]} 12. Nxd4 {[%clk 0:02:40.7]}
12... Nc5 {[%clk 0:02:36.3]} 13. Bf3 {[%clk 0:02:37.9]} 13... e5 {[%clk
0:02:36.5]} 14. Nb5 {[%clk 0:02:29.3]} 14... Be6 {[%clk 0:01:54]} 15. Rc1 {[%clk
0:01:58]} 15... a6 {[%clk 0:01:28]} 16. Qxd8 {[%clk 0:01:49.6]} 16... Raxd8
{[%clk 0:01:28.9]} 17. Nc7 {[%clk 0:01:48]} 17... e4 {[%clk 0:00:48]} 18. Nxe6
{[%clk 0:01:34.1]} 18... fxe6 {[%clk 0:00:45.6]} 19. Bg4 {[%clk 0:01:10.2]}
19... a5 {[%clk 0:00:38]} 20. Rc2 {[%clk 0:01:01.2]} 20... Kf7 {[%clk
0:00:31.5]} 21. f3 {[%clk 0:00:42.3]} 21... Ke8 {[%clk 0:00:12.6]} 22. fxe4
{[%clk 0:00:36.8]} 22... Rxf1+ {[%clk 0:00:13.5]} 23. Kxf1 {[%clk 0:00:37.7]}
23... e5 {[%clk 0:00:06.6]} 24. Bf3 {[%clk 0:00:17.7]} 24... Ne6 {[%clk
0:00:06.6]} 25. Rd2 {[%clk 0:00:17.5]} 25... Nd4 {[%clk 0:00:07.1]} 26. Bd1
{[%clk 0:00:09.5]} 26... Bc5 {[%clk 0:00:06.4]} 27. g3 {[%clk 0:00:05.8]} 27...
Rd6 {[%clk 0:00:05.7]} 28. Kg2 {[%clk 0:00:06]} 28... Rf6 {[%clk 0:00:05.7]} 29.
Bg4 {[%clk 0:00:03.9]} 29... b6 {[%clk 0:00:05.6]} 30. Bxd4 {[%clk 0:00:01.9]}
30... Bxd4 {[%clk 0:00:06.5]} 31. b3 {[%clk 0:00:02.5]} 31... Ke7 {[%clk
0:00:06.9]} 32. Bf5 {[%clk 0:00:02.9]} 32... g6 {[%clk 0:00:07.3]} 33. Bg4
{[%clk 0:00:03.5]} 33... Kd6 {[%clk 0:00:07.9]} 34. a3 {[%clk 0:00:03.6]} 34...
Kc5 {[%clk 0:00:08.4]} 35. Rc2 {[%clk 0:00:03.6]} 35... h5 {[%clk 0:00:08.9]}
36. Bf3 {[%clk 0:00:02.6]} 36... Rf8 {[%clk 0:00:08]} 37. h4 {[%clk 0:00:02.9]}
37... Rf6 {[%clk 0:00:08.2]} 38. Bd1 {[%clk 0:00:03.1]} 38... Rf8 {[%clk
0:00:08.5]} 39. Bf3 {[%clk 0:00:03.1]} 39... Rf6 {[%clk 0:00:08.9]} 40. Ra2
{[%clk 0:00:03.4]} 40... Rf8 {[%clk 0:00:07.8]} 41. Bd1 {[%clk 0:00:02.6]} 41...
Rf6 {[%clk 0:00:07.6]} 42. Rc2 {[%clk 0:00:03.1]} 42... Rf8 {[%clk 0:00:07.7]}
43. g4 {[%clk 0:00:03.8]} 43... Rf4 {[%clk 0:00:07.3]} 44. gxh5 {[%clk
0:00:04.3]} 44... gxh5 {[%clk 0:00:08.2]} 45. Bf3 {[%clk 0:00:04.8]} 45... Rxh4
{[%clk 0:00:08.1]} 46. Kg3 {[%clk 0:00:05.6]} 46... Rf4 {[%clk 0:00:08.3]} 47.
Rh2 {[%clk 0:00:06.2]} 47... h4+ {[%clk 0:00:08.6]} 48. Rxh4 {[%clk 0:00:05.9]}
48... Bf2+ {[%clk 0:00:08.7]} 49. Kxf2 {[%clk 0:00:06.1]} 49... Rxh4 {[%clk
0:00:09.6]} 50. Kg3 {[%clk 0:00:01.6]} 50... Rh8 {[%clk 0:00:10.3]} 51. Kg4
{[%clk 0:00:02]} 51... Kd4 {[%clk 0:00:10.9]} 52. Kg5 {[%clk 0:00:01.5]} 52...
Rf8 {[%clk 0:00:11.2]} 53. Bh1 {[%clk 0:00:01.8]} 53... Rf2 {[%clk 0:00:11.2]}
54. Kg6 {[%clk 0:00:01.4]} 54... Rb2 {[%clk 0:00:11.2]} 55. b4 {[%clk
0:00:01.6]} 55... axb4 {[%clk 0:00:11.4]} 56. axb4 {[%clk 0:00:02.5]} 56... Rxb4
{[%clk 0:00:12.3]} 57. Kf5 {[%clk 0:00:02.9]} 57... Rxc4 {[%clk 0:00:12.7]} 58.
Bf3 {[%clk 0:00:03.4]} 58... Rc3 {[%clk 0:00:13.5]} 59. Bh5 {[%clk 0:00:04.3]}
59... b5 {[%clk 0:00:13.8]} 60. Bf7 {[%clk 0:00:05.2]} 60... b4 {[%clk
0:00:14.7]} 0-1